Workbook

Sheet KOKONAISTILANNE
D5: Kausikilpailut 2025 Impivaara, Turku
AY6: Nimi | AZ6: pvm | BA6: Rata | BB6: Piikki/X
B8: NETTOTULOKSET JA PISTEET | AY8: PIIKKIKISA
B9: Sij. | C9: Nimi | D9: Seura | E9: HCP alku | F9: HCP nyt | G9: 2025-05-06 | I9: 2025-05-13 | K9: 2025-05-20 | M9: 2025-05-27 | O9: 2025-06-03 | Q9: 2025-06-10 | S9: 2025-06-17 | U9: 2025-06-24 | W9: 2025-07-01 | Y9: 2025-07-08 | AA9: 2025-07-15 | AC9: 2025-07-22 | AE9: 2025-07-29 | AG9: 2025-08-05 | AI9: 2025-08-12 | AK9: 2025-08-19 | AM9: 2025-08-26 | AO9: 2025-09-02 | AQ9: 2025-09-09 | AS9: 16.9. | AU9: kilp | AV9: sum | AY9: Juuso Tasku | BA9: 6.5. | BB9: 6 | BC9: X
B10: 1 | C10: Petri Lönngren | D10: TuRGS | E10: 4 | F10: +2 | I10: 79 | J10: =100-I10 -> 21 | K10: 72 | L10: =100-K10 -> 28 | M10: 65 | N10: =100-M10 -> 35 | O10: 75 | P10: =100-O10 -> 25 | Q10: 65 | R10: =100-Q10 -> 35 | S10: 61 | T10: =100-S10 -> 39 | U10: 89 | V10: =100-U10 -> 11 | W10: 78 | X10: =100-W10 -> 22 | Y10: 77 | Z10: =100-Y10 -> 23 | AA10: 65 | AB10: =100-AA10 -> 35 | AC10: 62 | AD10: =100-AC10 -> 38 | AE10: 78 | AF10: =100-AE10 -> 22 | AG10: 77 | AH10: =100-AG10 -> 23 | AI10: 79 | AJ10: =100-AI10 -> 21 | AK10: 67 | AL10: =100-AK10 -> 33 | AM10: 73 | AN10: =100-AM10 -> 27 | AO10: 64 | AP10: =100-AO10 -> 36 | AQ10: 69 | AR10: =100-AQ10 -> 31 | AS10: 78 | AT10: =100-AS10 -> 22 | AU10: =COUNT(G10:AT10)/2 -> 19 | AV10: =Aputaulukko!AJ2 -> 385 | AY10: Juuso Tasku | BA10: 13.5. | BB10: 12 | BC10: X
B11: 2 | C11: Oliver Mäntylä | D11: TuRGS | E11: 4 | F11: +5 | G11: 75 | H11: =100-G11 -> 25 | I11: 71 | J11: 29 | K11: 75 | L11: 25 | M11: 64 | N11: 36 | O11: 67 | P11: 33 | U11: 71 | V11: =100-U11 -> 29 | W11: 67 | X11: 33 | Y11: 68 | Z11: 32 | AA11: 73 | AB11: 27 | AC11: 61 | AD11: 39 | AE11: 74 | AF11: 26 | AG11: 77 | AH11: =100-AG11 -> 23 | AK11: 67 | AL11: =100-AK11 -> 33 | AM11: 71 | AN11: =100-AM11 -> 29 | AO11: 72 | AP11: =100-AO11 -> 28 | AS11: 77 | AT11: =100-AS11 -> 23 | AU11: 16 | AV11: =Aputaulukko!AJ3 -> 374 | AY11: Juuso Tasku | BA11: 20.5. | BB11: 9 | BC11: Piikki
B12: 3 | C12: Juuso Tasku | D12: Manse | E12: 4 | F12: +1 | G12: 82 | H12: =100-G12 -> 18 | I12: 65 | J12: 35 | K12: 74 | L12: 26 | M12: 89 | N12: 11 | O12: 65 | P12: 35 | Q12: 86 | R12: =100-Q12 -> 14 | S12: 75 | T12: =100-S12 -> 25 | U12: 77 | V12: =100-U12 -> 23 | W12: 74 | X12: 26 | Y12: 73 | Z12: 27 | AA12: 64 | AB12: 36 | AC12: 65 | AD12: 35 | AE12: 75 | AF12: 25 | AG12: 76 | AH12: =100-AG12 -> 24 | AM12: 70 | AN12: =100-AM12 -> 30 | AO12: 72 | AP12: =100-AO12 -> 28 | AQ12: 70 | AR12: =100-AQ12 -> 30 | AU12: 17 | AV12: =Aputaulukko!AJ4 -> 358 | AY12: Miko Tuominen | BA12: 27.5. | BB12: 8 | BC12: X
B13: 4 | C13: Miko Tuominen | D13: Manse | E13: 4 | F13: 0 | I13: 73 | J13: 27 | K13: 77 | L13: 23 | M13: 70 | N13: 30 | O13: 72 | P13: 28 | Q13: 69 | R13: =100-Q13 -> 31 | S13: 63 | T13: =100-S13 -> 37 | U13: 80 | V13: =100-U13 -> 20 | W13: 70 | X13: 30 | Y13: 80 | Z13: 20 | AA13: 73 | AB13: 27 | AC13: 68 | AD13: 32 | AE13: 76 | AF13: 24 | AI13: 73 | AJ13: =100-AI13 -> 27 | AK13: 80 | AL13: =100-AK13 -> 20 | AM13: 61 | AN13: =100-AM13 -> 39 | AS13: 75 | AT13: =100-AS13 -> 25 | AU13: 16 | AV13: =Aputaulukko!AJ5 -> 357 | AY13: Miko Tuominen | BA13: 3.6. | BB13: 14 | BC13: X
B14: 5 | C14: Petri Tanninen | D14: TuRGS | E14: 12 | F14: 8 | G14: 97 | H14: =100-G14 -> 3 | I14: 73 | J14: 27 | K14: 87 | L14: 13 | M14: 70 | N14: 30 | O14: 59 | P14: 41 | Q14: 67 | R14: =100-Q14 -> 33 | S14: 74 | T14: =100-S14 -> 26 | U14: 87 | V14: =100-U14 -> 13 | W14: 82 | X14: 18 | Y14: 93 | Z14: 7 | AA14: 78 | AB14: 22 | AC14: 68 | AD14: 32 | AE14: 71 | AF14: 29 | AG14: 72 | AH14: =100-AG14 -> 28 | AI14: 83 | AJ14: =100-AI14 -> 17 | AK14: 68 | AL14: =100-AK14 -> 32 | AM14: 72 | AN14: =100-AM14 -> 28 | AO14: 72 | AP14: =100-AO14 -> 28 | AQ14: 82 | AR14: =100-AQ14 -> 18 | AS14: 80 | AT14: =100-AS14 -> 20 | AU14: 20 | AV14: =Aputaulukko!AJ6 -> 356 | AY14: Petri Tanninen | BA14: 10.6. | BB14: 15 | BC14: X
B15: 6 | C15: Pekka Mäntylä | D15: TuRGS | E15: 4 | F15: 1 | G15: 80 | H15: =100-G15 -> 20 | I15: 71 | J15: 29 | K15: 75 | L15: 25 | M15: 82 | N15: 18 | O15: 81 | P15: 19 | W15: 72 | X15: 28 | Y15: 73 | Z15: 27 | AA15: 72 | AB15: 28 | AC15: 87 | AD15: 13 | AE15: 81 | AF15: 19 | AG15: 72 | AH15: =100-AG15 -> 28 | AI15: 62 | AJ15: =100-AI15 -> 38 | AK15: 67 | AL15: =100-AK15 -> 33 | AO15: 75 | AP15: =100-AO15 -> 25 | AS15: 70 | AT15: =100-AS15 -> 30 | AU15: 15 | AV15: =Aputaulukko!AJ7 -> 330 | AY15: Juuso Tasku | BA15: 17.6. | BB15: 17 | BC15: Piikki
B16: 7 | C16: Juhani Samuli | D16: TuRGS | E16: 12 | F16: 9 | I16: 68 | J16: 32 | K16: 77 | L16: 23 | M16: 82 | N16: 18 | O16: 76 | P16: 24 | Q16: 78 | R16: =100-Q16 -> 22 | S16: 80 | T16: =100-S16 -> 20 | U16: 81 | V16: =100-U16 -> 19 | W16: 77 | X16: 23 | Y16: 81 | Z16: 19 | AA16: 74 | AB16: 26 | AC16: 68 | AD16: 32 | AE16: 86 | AF16: 14 | AG16: 82 | AH16: =100-AG16 -> 18 | AI16: 76 | AJ16: =100-AI16 -> 24 | AK16: 67 | AL16: =100-AK16 -> 33 | AM16: 92 | AN16: =100-AM16 -> 8 | AO16: 76 | AP16: =100-AO16 -> 24 | AQ16: 65 | AR16: =100-AQ16 -> 35 | AS16: 69 | AT16: =100-AS16 -> 31 | AU16: 19 | AV16: =Aputaulukko!AJ8 -> 329 | AY16: Oliver Mäntylä | BA16: 24.6. | BB16: 7 | BC16: Piikki
B17: 8 | C17: Patrik Eriksson | D17: TuRGS | E17: 8 | F17: 2 | G17: 79 | H17: =100-G17 -> 21 | I17: 75 | J17: 25 | M17: 74 | N17: 26 | O17: 82 | P17: 18 | Q17: 67 | R17: =100-Q17 -> 33 | S17: 76 | T17: =100-S17 -> 24 | U17: 73 | V17: =100-U17 -> 27 | W17: 78 | X17: 22 | Y17: 72 | Z17: 28 | AA17: 75 | AB17: 25 | AC17: 77 | AD17: 23 | AE17: 73 | AF17: 27 | AG17: 72 | AH17: =100-AG17 -> 28 | AI17: 65 | AJ17: =100-AI17 -> 35 | AK17: 79 | AL17: =100-AK17 -> 21 | AM17: 84 | AN17: =100-AM17 -> 16 | AO17: 75 | AP17: =100-AO17 -> 25 | AQ17: 76 | AR17: =100-AQ17 -> 24 | AS17: 79 | AT17: =100-AS17 -> 21 | AU17: 19 | AV17: =Aputaulukko!AJ9 -> 327 | AY17: Patrik Eriksson | BA17: 1.7. | BB17: 10 | BC17: X
B18: 9 | C18: Jari Haapanen | D18: TuRGS | E18: 8 | F18: 10 *) | I18: 80 | J18: =100-I18 -> 20 | K18: 90 | L18: =100-K18 -> 10 | M18: 95 | N18: =100-M18 -> 5 | O18: 74 | P18: =100-O18 -> 26 | Q18: 88 | R18: =100-Q18 -> 12 | S18: 74 | T18: =100-S18 -> 26 | U18: 94 | V18: =100-U18 -> 6 | W18: 72 | X18: =100-W18 -> 28 | Y18: 74 | Z18: =100-Y18 -> 26 | AA18: 83 | AB18: =100-AA18 -> 17 | AC18: 78 | AD18: =100-AC18 -> 22 | AG18: 70 | AH18: =100-AG18 -> 30 | AI18: 69 | AJ18: =100-AI18 -> 31 | AK18: 82 | AL18: =100-AK18 -> 18 | AO18: 78 | AP18: =100-AO18 -> 22 | AQ18: 62 | AR18: =100-AQ18 -> 38 | AS18: 82 | AT18: =100-AS18 -> 18 | AU18: =COUNT(G18:AT18)/2 -> 17 | AV18: =Aputaulukko!AJ10 -> 305 | AY18: Pekka Mäntylä | BA18: 8.7. | BB18: 7 | BC18: X
B19: 10 | C19: Kari Linnanketo | D19: TuRGS | E19: 8 | F19: 7 | I19: 92 | J19: 8 | M19: 95 | N19: 5 | O19: 90 | P19: 10 | Q19: 80 | R19: =100-Q19 -> 20 | S19: 81 | T19: =100-S19 -> 19 | W19: 80 | X19: 20 | Y19: 73 | Z19: 27 | AA19: 75 | AB19: 25 | AC19: 88 | AD19: 12 | AE19: 81 | AF19: =100-AE19 -> 19 | AI19: 82 | AJ19: 18 | AK19: 78 | AL19: 22 | AM19: 73 | AN19: =100-AM19 -> 27 | AO19: 75 | AP19: 25 | AQ19: 63 | AR19: 37 | AU19: 15 | AV19: =Aputaulukko!AJ11 -> 271 | AY19: Petri Tanninen | BA19: 15.7. | BB19: 16 | BC19: Piikki
A20: 98 | B20: 11 | C20: Tiina Tång | D20: TuRGS | E20: 12 | F20: 11 | I20: 84 | J20: 16 | K20: 99 | L20: =100-K20 -> 1 | M20: 103 | N20: 0 | O20: 88 | P20: 12 | Q20: 89 | R20: =100-Q20 -> 11 | S20: 94 | T20: =100-S20 -> 6 | U20: 92 | V20: =100-U20 -> 8 | W20: 74 | X20: 26 | Y20: 89 | Z20: 11 | AA20: 68 | AB20: 32 | AC20: 83 | AD20: 17 | AE20: 108 | AF20: 0 | AG20: 65 | AH20: =100-AG20 -> 35 | AI20: 72 | AJ20: 28 | AK20: 79 | AL20: 21 | AM20: 96 | AN20: =100-AM20 -> 4 | AO20: 98 | AP20: 2 | AQ20: 76 | AR20: 24 | AU20: 18 | AV20: =Aputaulukko!AJ12 -> 241 | AY20: Oliver Mäntylä | BA20: 22.7. | BB20: 6 | BC20: X
B21: 12 | C21: Aleksi Tång | D21: TuRGS | E21: 12 | F21: 12 | I21: 94 | J21: 6 | K21: 87 | L21: =100-K21 -> 13 | M21: 85 | N21: =100-M21 -> 15 | O21: 77 | P21: 23 | W21: 87 | X21: 13 | AA21: 79 | AB21: 21 | AE21: 89 | AF21: =100-AE21 -> 11 | AG21: 82 | AH21: =100-AG21 -> 18 | AK21: 83 | AL21: 17 | AM21: 86 | AN21: =100-AM21 -> 14 | AU21: 10 | AV21: =Aputaulukko!AJ13 -> 151 | AY21: Patrik Eriksson | BA21: 29.7. | BB21: 17 | BC21: X
B22: 13 | C22: Marianne Martiala | D22: TuRGS | E22: 12 | F22: 20 | G22: 116 | H22: 0 | I22: 115 | J22: 0 | K22: 134 | L22: 0 | O22: 90 | P22: 10 | Q22: 83 | R22: =100-Q22 -> 17 | S22: 105 | T22: 0 | W22: 115 | X22: 0 | Y22: 104 | Z22: 0 | AA22: 89 | AB22: 11 | AC22: 104 | AD22: 0 | AE22: 99 | AF22: =100-AE22 -> 1 | AG22: 107 | AH22: 0 | AI22: 99 | AJ22: =100-AI22 -> 1 | AK22: 88 | AL22: 12 | AO22: 94 | AP22: =100-AO22 -> 6 | AQ22: 78 | AR22: =100-AQ22 -> 22 | AS22: 77 | AT22: =100-AS22 -> 23 | AU22: 17 | AV22: =Aputaulukko!AJ14 -> 103 | AY22: Petri Tanninen | BA22: 5.8. | BB22: 7 | BC22: Piikki
B23: 14 | C23: Marjo Tiainen | D23: TuRGS | E23: 12 | F23: 16 | G23: 101 | H23: 0 | I23: 96 | J23: 0 | K23: 120 | L23: 0 | O23: 109 | P23: 0 | Q23: 96 | R23: =100-Q23 -> 4 | S23: 88 | T23: =100-S23 -> 12 | W23: 110 | X23: 0 | Y23: 93 | Z23: =100-Y23 -> 7 | AE23: 91 | AF23: =100-AE23 -> 9 | AG23: 99 | AH23: =100-AG23 -> 1 | AI23: 126 | AJ23: 0 | AK23: 114 | AL23: 0 | AM23: 96 | AN23: =100-AM23 -> 4 | AO23: 86 | AP23: =100-AO23 -> 14 | AU23: 14 | AV23: =Aputaulukko!AJ15 -> 51 | AY23: Miko Tuominen | BA23: 12.8. | BB23: 5 | BC23: X
B24: 15 | C24: Kari Kulmala | D24: TuRGS | E24: 12 | F24: 14 | AA24: 97 | AB24: =100-AA24 -> 3 | AI24: 85 | AJ24: =100-AI24 -> 15 | AM24: 101 | AN24: 0 | AO24: 81 | AP24: =100-AO24 -> 19 | AS24: 97 | AT24: =100-AS24 -> 3 | AU24: 5 | AV24: =Aputaulukko!AJ16 -> 40 | AY24: Petri Tanninen | BA24: 19.8. | BB24: 13 | BC24: X
B25: 16 | C25: Perttu Uotila | D25: SuoRa | E25: 8 | F25: 7 | AO25: 68 | AP25: =100-AO25 -> 32 | AU25: 1 | AV25: =Aputaulukko!AJ17 -> 32 | AY25: Patrik Eriksson | BA25: 26.8. | BB25: 3 | BC25: X
B26: 17 | C26: Axel Ekman | D26: Manse | E26: 8 | F26: 8 | AE26: 83 | AF26: =100-AE26 -> 17 | AU26: 1 | AV26: =Aputaulukko!AJ18 -> 17 | AY26: Pekka Mäntylä | BA26: 2.9. | BB26: 11 | BC26: X
B27: 18 | C27: Kenth Smeds | D27: NMG | E27: 12 | F27: 12 | O27: 86 | P27: =100-O27 -> 14 | AU27: 1 | AV27: =Aputaulukko!AJ19 -> 14 | AY27: Patrik Eriksson | BA27: 9.9. | BB27: 6 | BC27: Piikki
B28: 19 | C28: Jori Pasanen | D28: TuRGS | E28: 4 | F28: 4 | W28: 87 | X28: 13 | AU28: =COUNT(G28:AT28)/2 -> 1 | AV28: 0 | AY28: Petri Tanninen | BA28: 16.9 | BB28: 10 | BC28: Piikki
B29: 20 | C29: Koomikko | D29: TuRGS | E29: 12 | F29: 16 | G29: 106 | H29: 0 | K29: 141 | L29: 0 | M29: 125 | N29: 0 | Y29: 107 | Z29: 0 | AA29: 110 | AB29: 0 | AU29: =COUNT(G29:AT29)/2 -> 5 | AV29: 0
B30: 21 | C30: Tomi Aunio | D30: TuRGS | E30: 8 | F30: 8 | I30: 114 | J30: 0 | AU30: 1 | AV30: 0
B31: 22 | C31: Ari Åman | D31: TaRGS | E31: 8 | F31: 8 | K31: dnf | L31: 0 | AA31: 100 | AB31: 0 | AU31: 1.5 | AV31: 0
F32: *) 16.6.2025 H2->H3 | AV32: 12.parasta kisaa huomioidaan!
B34: Sij. | C34: Nimi | D34: Seura | E34: Luokka | G34: 6.5. | I34: 13.5. | K34: 20.5. | M34: 2025-05-27 | O34: 2025-06-03 | Q34: 2025-06-10 | S34: 2025-06-17 | U34: 2025-06-24 | W34: 2025-07-01 | Y34: 2025-07-08 | AA34: 2025-07-15 | AC34: 2025-07-22 | AE34: 2025-07-29 | AG34: 2025-08-05 | AI34: 2025-08-12 | AK34: 2025-08-19 | AM34: 2025-08-26 | AO34: 2025-09-02 | AQ34: 2025-09-09 | AS34: 2025-09-16 | AU34: krs | AV34: ka. | AW34: min | AX34: max | AY34: haj
B35: 1 | C35: Oliver Mäntylä | D35: TuRGS | E35: H1 | G35: 39 | H35: 40 | I35: 35 | J35: 38 | K35: 37 | L35: 40 | M35: 32 | N35: 34 | O35: 36 | P35: 31 | U35: 33 | V35: 38 | W35: 37 | X35: 29 | Y35: 32 | Z35: 34 | AA35: 36 | AB35: 34 | AC35: 29 | AD35: 29 | AE35: 38 | AF35: 32 | AG35: 39 | AH35: 34 | AK35: 33 | AL35: 30 | AM35: 31 | AN35: 35 | AO35: 32 | AP35: 35 | AS35: 30 | AT35: 42 | AU35: =COUNT(G35:AT35) -> 32 | AV35: =AVERAGE(G35:AT35) -> 34.5 | AW35: =MIN(G35:AT35) -> 29 | AX35: =MAX(G35:AT35) -> 42 | AY35: =AX35-AW35 -> 13
B36: 2 | C36: Petri Lönngren | D36: TuRGS | E36: H1 | I36: 39 | J36: 44 | K36: 35 | L36: 41 | M36: 32 | N36: 35 | O36: 40 | P36: 36 | Q36: 29 | R36: 37 | S36: 29 | T36: 32 | U36: 39 | V36: 50 | W36: 38 | X36: 39 | Y36: 37 | Z36: 39 | AA36: 33 | AB36: 31 | AC36: 30 | AD36: 31 | AE36: 39 | AF36: 38 | AG36: 36 | AH36: 40 | AI36: 46 | AJ36: 32 | AK36: 32 | AL36: 34 | AM36: 33 | AN36: 39 | AO36: 30 | AP36: 33 | AQ36: 32 | AR36: 35 | AS36: 39 | AT36: 37 | AU36: 38 | AV36: 36.07894737 | AW36: 29 | AX36: 50 | AY36: 21
B37: 3 | C37: Juuso Tasku | D37: Manse | E37: H1 | G37: 41 | H37: 45 | I37: 34 | J37: 35 | K37: 35 | L37: 41 | M37: 46 | N37: 44 | O37: 33 | P37: 33 | Q37: 47 | R37: 39 | S37: 41 | T37: 34 | U37: 37 | V37: 40 | W37: 40 | X37: 34 | Y37: 40 | Z37: 33 | AA37: 32 | AB37: 32 | AC37: 31 | AD37: 33 | AE37: 45 | AF37: 29 | AG37: 40 | AH37: 35 | AM37: 32 | AN37: 37 | AO37: 33 | AP37: 38 | AQ37: 35 | AR37: 34 | AU37: 34 | AV37: =AVERAGE(G37:AT37) -> 37 | AW37: =MIN(G37:AT37) -> 29 | AX37: =MAX(G37:AT37) -> 47 | AY37: =AX37-AW37 -> 18
B38: 4 | C38: Miko Tuominen | D38: Manse | E38: H1 | I38: 40 | J38: 37 | K38: 40 | L38: 41 | M38: 38 | N38: 36 | O38: 38 | P38: 38 | Q38: 35 | R38: 38 | S38: 32 | T38: 35 | U38: 36 | V38: 47 | W38: 32 | X38: 41 | Y38: 36 | Z38: 46 | AA38: 41 | AB38: 34 | AC38: 36 | AD38: 34 | AE38: 37 | AF38: 41 | AI38: 41 | AJ38: 34 | AK38: 45 | AL38: 37 | AM38: 34 | AN38: 29 | AS38: 37 | AT38: 38 | AU38: 32 | AV38: 37.625 | AW38: 29 | AX38: 47 | AY38: 18
B39: 5 | C39: Pekka Mäntylä | D39: TuRGS | E39: H1 | G39: 41 | H39: 43 | I39: 37 | J39: 38 | K39: 40 | L39: 39 | M39: 38 | N39: 48 | O39: 40 | P39: 45 | W39: 41 | X39: 35 | Y39: 41 | Z39: 36 | AA39: 42 | AB39: 34 | AC39: 45 | AD39: 46 | AE39: 40 | AF39: 45 | AG39: 39 | AH39: 37 | AI39: 29 | AJ39: 37 | AK39: 31 | AL39: 38 | AO39: 40 | AP39: 37 | AS39: 32 | AT39: 40 | AU39: 30 | AV39: 39.13333333 | AW39: 29 | AX39: 48 | AY39: 19
B40: 6 | C40: Patrik Eriksson | D40: TuRGS | E40: H2 | G40: 41 | H40: 46 | I40: 45 | J40: 37 | M40: 38 | N40: 43 | O40: 45 | P40: 44 | Q40: 36 | R40: 38 | S40: 45 | T40: 37 | U40: 41 | V40: 38 | W40: 43 | X40: 40 | Y40: 38 | Z40: 39 | AA40: 36 | AB40: 43 | AC40: 35 | AD40: 46 | AE40: 40 | AF40: 37 | AG40: 40 | AH40: 35 | AI40: 32 | AJ40: 36 | AK40: 46 | AL40: 35 | AM40: 46 | AN40: 40 | AO40: 34 | AP40: 43 | AQ40: 33 | AR40: 45 | AS40: 36 | AT40: 45 | AU40: 38 | AV40: 39.92105263 | AW40: 32 | AX40: 46 | AY40: 14
B41: 7 | C41: Perttu Outila | D41: SuoRA | E41: H2 | AO41: 42 | AP41: 38 | AU41: 2 | AV41: 40 | AW41: 38 | AX41: 42 | AY41: 4
B42: 8 | C42: Petri Tanninen | D42: TuRGS | E42: H3 | G42: 47 | H42: 62 | I42: 46 | J42: 39 | K42: 48 | L42: 51 | M42: 44 | N42: 38 | O42: 38 | P42: 33 | Q42: 37 | R42: 40 | S42: 33 | T42: 51 | U42: 50 | V42: 47 | W42: 42 | X42: 50 | Y42: 50 | Z42: 53 | AA42: 46 | AB42: 42 | AC42: 37 | AD42: 41 | AE42: 41 | AF42: 40 | AG42: 41 | AH42: 39 | AI42: 47 | AJ42: 44 | AK42: 33 | AL42: 43 | AM42: 43 | AN42: 37 | AO42: 43 | AP42: 37 | AQ42: 47 | AR42: 43 | AS42: 39 | AT42: 49 | AU42: 40 | AV42: 43.275 | AW42: 33 | AX42: 62 | AY42: 29
B43: 9 | C43: Juhani Samuli | D43: TuRGS | E43: H3 | I43: 40 | J43: 40 | K43: 45 | L43: 43 | M43: 43 | N43: 50 | O43: 46 | P43: 41 | Q43: 47 | R43: 42 | S43: 40 | T43: 51 | U43: 42 | V43: 50 | W43: 41 | X43: 47 | Y43: 44 | Z43: 48 | AA43: 41 | AB43: 44 | AC43: 42 | AD43: 37 | AE43: 57 | AF43: 40 | AG43: 51 | AH43: 42 | AI43: 45 | AJ43: 42 | AK43: 43 | AL43: 35 | AM43: 56 | AN43: 47 | AO43: 47 | AP43: 40 | AQ43: 40 | AR43: 36 | AS43: 37 | AT43: 43 | AU43: 38 | AV43: 43.81578947 | AW43: 35 | AX43: 57 | AY43: 22
B44: 10 | C44: Kari Linnanketo | D44: TuRGS | E44: H2 | I44: 49 | J44: 51 | M44: 56 | N44: 47 | O44: 54 | P44: 44 | Q44: 39 | R44: 49 | S44: 44 | T44: 45 | W44: 40 | X44: 48 | Y44: 36 | Z44: 45 | AA44: 41 | AB44: 42 | AC44: 50 | AD44: 46 | AE44: 45 | AF44: 44 | AI44: 41 | AJ44: 49 | AK44: 45 | AL44: 41 | AM44: 40 | AN44: 41 | AO44: 39 | AP44: 44 | AQ44: 38 | AR44: 33 | AU44: 30 | AV44: 44.2 | AW44: 33 | AX44: 56 | AY44: 23
B45: 11 | C45: Jori Pasanen | D45: TuRGS | E45: H1 | W45: 42 | X45: 49 | AU45: 2 | AV45: 45.5 | AW45: 42 | AX45: 49 | AY45: 7
B46: 12 | C46: Axel Ekman | D46: Manse | E46: H2 | AE46: 53 | AF46: 38 | AU46: 2 | AV46: 45.5 | AW46: 38 | AX46: 53 | AY46: 15
B47: 13 | C47: Jari Haapanen | D47: TuRGS | E47: H2/H3 | I47: 46 | J47: 42 | K47: 46 | L47: 52 | M47: 43 | N47: 60 | O47: 38 | P47: 44 | Q47: 52 | R47: 44 | S47: 41 | T47: 45 | U47: 49 | V47: 57 | W47: 43 | X47: 42 | Y47: 40 | Z47: 47 | AA47: 54 | AB47: 42 | AC47: 41 | AD47: 50 | AG47: 38 | AH47: 45 | AI47: 44 | AJ47: 37 | AK47: 45 | AL47: 49 | AO47: 46 | AP47: 44 | AQ47: 40 | AR47: 34 | AS47: 50 | AT47: 42 | AU47: 34 | AV47: 45.05882353 | AW47: 34 | AX47: 60 | AY47: 26
B48: 14 | C48: Aleksi Tång | D48: TuRGS | E48: H3 | I48: 49 | J48: 57 | K48: 50 | L48: 49 | M48: 53 | N48: 44 | O48: 44 | P48: 45 | W48: 48 | X48: 51 | AA48: 51 | AB48: 40 | AE48: 46 | AF48: 55 | AG48: 51 | AH48: 43 | AK48: 52 | AL48: 43 | AM48: 40 | AN48: 58 | AU48: 20 | AV48: 48.45 | AW48: 40 | AX48: 58 | AY48: 18
B49: 15 | C49: Kenth Smeds | D49: NMG | E49: H3 | O49: 52 | P49: 46 | AU49: 2 | AV49: 49 | AW49: 46 | AX49: 52 | AY49: 6
B50: 16 | C50: Tiina Tång | D50: TuRGS | E50: H3 | I50: 50 | J50: 46 | K50: 51 | L50: 60 | M50: 65 | N50: 50 | O50: 52 | P50: 48 | Q50: 51 | R50: 50 | S50: 48 | T50: 58 | U50: 55 | V50: 49 | W50: 41 | X50: 45 | Y50: 53 | Z50: 48 | AA50: 38 | AB50: 42 | AC50: 56 | AD50: 39 | AE50: 54 | AF50: 66 | AG50: 38 | AH50: 40 | AI50: 46 | AJ50: 37 | AK50: 44 | AL50: 46 | AM50: 59 | AN50: 48 | AO50: 55 | AP50: 54 | AQ50: 40 | AR50: 47 | AU50: 36 | AV50: 49.13888889 | AW50: 37 | AX50: 66 | AY50: 29
B51: 17 | C51: Kari Kulmala | D51: TuRGS | E51: H2 | AA51: 59 | AB51: 50 | AI51: 51 | AJ51: 46 | AM51: 62 | AN51: 51 | AO51: 52 | AP51: 42 | AS51: 53 | AT51: 57 | AU51: 10 | AV51: 52.3 | AW51: 42 | AX51: 62 | AY51: 20
B52: 18 | C52: Ari Åman | D52: TaRGS | E52: H3 | K52: 60 | AA52: 56 | AB52: 52 | AU52: 3 | AV52: 56 | AW52: 52 | AX52: 60 | AY52: 8
B53: 19 | C53: Marjo Tiainen | D53: TuRGS | E53: H3 | G53: 57 | H53: 56 | I53: 56 | J53: 52 | K53: 69 | L53: 63 | O53: 58 | P53: 63 | Q53: 61 | R53: 48 | S53: 57 | T53: 45 | W53: 66 | X53: 58 | Y53: 54 | Z53: 53 | AE53: 50 | AF53: 55 | AG53: 52 | AH53: 61 | AI53: 71 | AJ53: 69 | AK53: 69 | AL53: 60 | AM53: 57 | AN53: 55 | AO53: 62 | AP53: 40 | AU53: 28 | AV53: 57.75 | AW53: 40 | AX53: 71 | AY53: 31
B54: 20 | C54: Marianne Martiala | D54: TuRGS | E54: H3 | G54: 65 | H54: 63 | I54: 71 | J54: 57 | K54: 72 | L54: 76 | O54: 58 | P54: 46 | Q54: 50 | R54: 47 | S54: 62 | T54: 57 | W54: 69 | X54: 61 | Y54: 40 | Z54: 80 | AA54: 56 | AB54: 49 | AC54: 56 | AD54: 64 | AE54: 60 | AF54: 56 | AG54: 69 | AH54: 55 | AI54: 64 | AJ54: 53 | AK54: 55 | AL54: 51 | AO54: 68 | AP54: 62 | AQ54: 51 | AR54: 45 | AS54: 53 | AT54: 44 | AU54: 34 | AV54: 58.38235294 | AW54: 40 | AX54: 80 | AY54: 40
B55: 21 | C55: Tomi Aunio | D55: TuRGS | E55: H2 | I55: 61 | J55: 61 | AU55: 2 | AV55: 61 | AW55: 61 | AX55: 61 | AY55: 0
B56: 22 | C56: Koomikko | D56: TuRGS | E56: H3 | G56: 66 | H56: 52 | K56: 79 | L56: 74 | M56: 68 | N56: 70 | Y56: 70 | Z56: 51 | AA56: 63 | AB56: 62 | AU56: 10 | AV56: 65.5 | AW56: =MIN(G56:AT56) -> 51 | AX56: =MAX(G56:AT56) -> 79 | AY56: 28

Sheet Tilastot 2020-25
A1: Average
A2: Nimi | B2: 2020 | C2: 2021 | D2: 2022 | E2: 2023 | F2: 2024 | G2: 2025 | H2: Average | I2: Min | J2: Max
A3: Pete | B3: 34.68 | C3: 36.36111111 | D3: 35.34 | E3: 35.44 | F3: 36.29 | G3: 36.08 | H3: =AVERAGE(B3:G3) -> 35.69851852 | I3: =MIN(B3:G3) -> 34.68 | J3: =MAX(B3:G3) -> 36.36111111
A4: Oliver | B4: 42 | C4: 40.34210526 | D4: 39.31 | E4: 37.39 | F4: 35.22 | G4: 34.5 | H4: =AVERAGE(B4:G4) -> 38.12701754 | I4: =MIN(B4:G4) -> 34.5 | J4: =MAX(B4:G4) -> 42
A5: Miko | F5: 39.44 | G5: 37.63 | H5: =AVERAGE(B5:G5) -> 38.535 | I5: =MIN(B5:G5) -> 37.63 | J5: =MAX(B5:G5) -> 39.44
A6: Juuso | F6: 40.94 | G6: 37 | H6: =AVERAGE(B6:G6) -> 38.97 | I6: =MIN(B6:G6) -> 37 | J6: =MAX(B6:G6) -> 40.94
A7: Pekka | B7: 45.65 | C7: 41 | D7: 43.56 | E7: 38.53 | F7: 36.72 | G7: 39.13 | H7: =AVERAGE(B7:G7) -> 40.765 | I7: =MIN(B7:G7) -> 36.72 | J7: =MAX(B7:G7) -> 45.65
A8: Patrik | B8: 42.17 | C8: 45.2 | D8: 43.54 | E8: 42.42 | F8: 41.55 | G8: 39.92 | H8: =AVERAGE(B8:G8) -> 42.46666667 | I8: =MIN(B8:G8) -> 39.92 | J8: =MAX(B8:G8) -> 45.2
A9: Jusa | B9: 42.36 | C9: 39.75 | D9: 43.79 | E9: 43.63 | F9: 44.08 | G9: 43.82 | H9: =AVERAGE(B9:G9) -> 42.905 | I9: =MIN(B9:G9) -> 39.75 | J9: =MAX(B9:G9) -> 44.08
A10: Jari | B10: 42.45 | C10: 41.36842105 | D10: 42.56 | E10: 45.11 | F10: 48.27 | G10: 45.06 | H10: =AVERAGE(B10:G10) -> 44.13640351 | I10: =MIN(B10:G10) -> 41.36842105 | J10: =MAX(B10:G10) -> 48.27
A11: Eetu | B11: 45.48 | C11: 43.52777778 | D11: 44.88 | E11: 44.31 | F11: 46 | H11: =AVERAGE(B11:G11) -> 44.83955556 | I11: =MIN(B11:G11) -> 43.52777778 | J11: =MAX(B11:G11) -> 46
A12: Kätsä | B12: 45.5 | C12: 45.95833333 | D12: 45.38 | E12: 45.11 | F12: 44.44 | G12: 44.2 | H12: =AVERAGE(B12:G12) -> 45.09805556 | I12: =MIN(B12:G12) -> 44.2 | J12: =MAX(B12:G12) -> 45.95833333
A13: Aleksi | B13: 46.7 | C13: 48.22727273 | D13: 48.07 | E13: 48.05 | F13: 47.96 | G13: 48.45 | H13: =AVERAGE(B13:G13) -> 47.90954545 | I13: =MIN(B13:G13) -> 46.7 | J13: =MAX(B13:G13) -> 48.45
A14: Tiina | B14: 48.32 | C14: 48.5 | D14: 47.66 | E14: 48.98 | F14: 49.5 | G14: 49.14 | H14: =AVERAGE(B14:G14) -> 48.68333333 | I14: =MIN(B14:G14) -> 47.66 | J14: =MAX(B14:G14) -> 49.5
A15: Kude | B15: 49.97 | C15: 46.76470588 | D15: 50.24 | E15: 46.06 | F15: 50.68 | H15: =AVERAGE(B15:G15) -> 48.74294118 | I15: =MIN(B15:G15) -> 46.06 | J15: =MAX(B15:G15) -> 50.68
A16: Petri T | C16: 53.81818182 | D16: 52.31 | E16: 51.47 | F16: 45.35 | G16: 43.28 | H16: =AVERAGE(B16:G16) -> 49.24563636 | I16: =MIN(B16:G16) -> 43.28 | J16: =MAX(B16:G16) -> 53.81818182
A17: Tomi | B17: 46.18 | C17: 41.28571429 | D17: 51.25 | E17: 51.75 | G17: 61 | H17: =AVERAGE(B17:G17) -> 50.29314286 | I17: =MIN(B17:G17) -> 41.28571429 | J17: =MAX(B17:G17) -> 61
A18: Marjo | C18: 58.04545455 | D18: 53.89 | E18: 55.14 | F18: 56.11 | G18: 57.75 | H18: =AVERAGE(B18:G18) -> 56.18709091 | I18: =MIN(B18:G18) -> 53.89 | J18: =MAX(B18:G18) -> 58.04545455
A19: Marianne | C19: 56.5 | D19: 57.77 | E19: 58.53 | F19: 56.79 | G19: 58.38 | H19: =AVERAGE(B19:G19) -> 57.594 | I19: =MIN(B19:G19) -> 56.5 | J19: =MAX(B19:G19) -> 58.53
A21: Nimi | B21: 2020 | C21: 2021 | D21: 2022 | E21: 2023 | F21: 2024 | G21: 2025 | H21: Average | I21: Min | J21: Max
A22: Pete | B22: 350 | C22: 356 | D22: 358 | E22: 372 | F22: 369 | G22: 385 | H22: =AVERAGE(B22:G22) -> 365 | I22: =MIN(B22:G22) -> 350 | J22: =MAX(B22:G22) -> 385
A23: Oliver | B23: 328 | C23: 353 | D23: 304 | E23: 348 | F23: 381 | G23: 374 | H23: 348 | I23: 304 | J23: 381
A24: Pekka | B24: 270 | C24: 356 | D24: 291 | E24: 348 | F24: 351 | G24: 330 | H24: 324.3333333 | I24: 270 | J24: 356
A25: Jusa | B25: 330 | C25: 340 | D25: 264 | E25: 259 | F25: 297 | G25: 329 | H25: 303.1666667 | I25: 259 | J25: 340
A26: Eetu | B26: 299 | C26: 352 | D26: 271 | E26: 272 | F26: 253 | H26: 289.4 | I26: 253 | J26: 352
A27: Jari | B27: 292 | C27: 339 | D27: 290 | E27: 223 | F27: 171 | G27: 305 | H27: 270 | I27: 171 | J27: 339
A28: Kätsä | B28: 270 | C28: 192 | D28: 219 | E28: 245 | F28: 259 | G28: 271 | H28: 242.6666667 | I28: 192 | J28: 271
A29: Tiina | B29: 223 | C29: 251 | D29: 245 | E29: 225 | F29: 228 | G29: 241 | H29: 235.5 | I29: 223 | J29: 251
A30: Patrik | B30: 152 | C30: 88 | D30: 219 | E30: 310 | F30: 333 | G30: 327 | H30: 238.1666667 | I30: 88 | J30: 333
A31: Kude | B31: 209 | C31: 284 | D31: 175 | E31: 282 | F31: 152 | H31: 220.4 | I31: 152 | J31: 284
A32: Aleksi | B32: 260 | C32: 171 | D32: 175 | E32: 159 | F32: 209 | G32: 151 | H32: 187.5 | I32: 151 | J32: 260
A33: Petri T | B33: 2 | C33: 67 | D33: 171 | E33: 224 | F33: 313 | G33: 356 | H33: 188.8333333 | I33: 2 | J33: 356
A35: Nimi | B35: 2020 | C35: 2021 | D35: 2022 | E35: 2023 | F35: 2024 | G35: 2025 | H35: Average | I35: Min | J35: Max
A36: Pete | B36: 350 | C36: 356 | D36: 358 | E36: 372 | F36: 369 | G36: 385 | H36: =AVERAGE(B36:G36) -> 365 | I36: =MIN(B36:G36) -> 350 | J36: =MAX(B36:G36) -> 385
A37: Oliver | B37: 328 | C37: 353 | D37: 304 | E37: 348 | F37: 381 | G37: 374 | H37: =AVERAGE(B37:G37) -> 348 | I37: =MIN(B37:G37) -> 304 | J37: =MAX(B37:G37) -> 381
A38: Pekka | B38: 270 | C38: 356 | D38: 291 | E38: 348 | F38: 351 | G38: 330 | H38: =AVERAGE(B38:G38) -> 324.3333333 | I38: =MIN(B38:G38) -> 270 | J38: =MAX(B38:G38) -> 356
A39: Petri T | B39: 2 | C39: 67 | D39: 171 | E39: 224 | F39: 313 | G39: 356 | H39: =AVERAGE(B39:G39) -> 188.8333333 | I39: =MIN(B39:G39) -> 2 | J39: =MAX(B39:G39) -> 356
A40: Eetu | B40: 299 | C40: 352 | D40: 271 | E40: 272 | F40: 253 | H40: =AVERAGE(B40:F40) -> 289.4 | I40: =MIN(B40:F40) -> 253 | J40: =MAX(B40:F40) -> 352
A41: Jusa | B41: 330 | C41: 340 | D41: 264 | E41: 259 | F41: 297 | G41: 329 | H41: =AVERAGE(B41:G41) -> 303.1666667 | I41: =MIN(B41:G41) -> 259 | J41: =MAX(B41:G41) -> 340
A42: Jari | B42: 292 | C42: 339 | D42: 290 | E42: 223 | F42: 171 | G42: 305 | H42: =AVERAGE(B42:G42) -> 270 | I42: =MIN(B42:G42) -> 171 | J42: =MAX(B42:G42) -> 339
A43: Patrik | B43: 152 | C43: 88 | D43: 219 | E43: 310 | F43: 333 | G43: 327 | H43: =AVERAGE(B43:G43) -> 238.1666667 | I43: =MIN(B43:G43) -> 88 | J43: =MAX(B43:G43) -> 333
A44: Kude | B44: 209 | C44: 284 | D44: 175 | E44: 282 | F44: 152 | H44: =AVERAGE(B44:F44) -> 220.4 | I44: =MIN(B44:F44) -> 152 | J44: =MAX(B44:F44) -> 284
A45: Kätsä | B45: 270 | C45: 192 | D45: 219 | E45: 245 | F45: 259 | G45: 271 | H45: =AVERAGE(B45:G45) -> 242.6666667 | I45: =MIN(B45:G45) -> 192 | J45: =MAX(B45:G45) -> 271
A46: Aleksi | B46: 260 | C46: 171 | D46: 175 | E46: 159 | F46: 209 | G46: 151 | H46: =AVERAGE(B46:G46) -> 187.5 | I46: =MIN(B46:G46) -> 151 | J46: =MAX(B46:G46) -> 260
A47: Tiina | B47: 223 | C47: 251 | D47: 245 | E47: 225 | F47: 228 | G47: 241 | H47: =AVERAGE(B47:G47) -> 235.5 | I47: =MIN(B47:G47) -> 223 | J47: =MAX(B47:G47) -> 251
A49: Nimi | B49: 2020 | C49: 2021 | D49: 2022 | E49: 2023 | F49: 2024 | G49: 2025 | H49: Average | I49: Min | J49: Max
A50: Pete | B50: 350 | C50: 356 | D50: 358 | E50: 372 | F50: 369 | G50: 385 | H50: =AVERAGE(B50:G50) -> 365 | I50: =MIN(B50:G50) -> 350 | J50: =MAX(B50:G50) -> 385
A51: Oliver | B51: 328 | C51: 353 | D51: 304 | E51: 348 | F51: 381 | G51: 374 | H51: =AVERAGE(B51:G51) -> 348 | I51: =MIN(B51:G51) -> 304 | J51: =MAX(B51:G51) -> 381
A52: Pekka | B52: 270 | C52: 356 | D52: 291 | E52: 348 | F52: 351 | G52: 330 | H52: =AVERAGE(B52:G52) -> 324.3333333 | I52: =MIN(B52:G52) -> 270 | J52: =MAX(B52:G52) -> 356
A53: Jusa | B53: 330 | C53: 340 | D53: 264 | E53: 259 | F53: 297 | G53: 329 | H53: =AVERAGE(B53:G53) -> 303.1666667 | I53: =MIN(B53:G53) -> 259 | J53: =MAX(B53:G53) -> 340
A54: Eetu | B54: 299 | C54: 352 | D54: 271 | E54: 272 | F54: 253 | H54: =AVERAGE(B54:F54) -> 289.4 | I54: =MIN(B54:F54) -> 253 | J54: =MAX(B54:F54) -> 352
A55: Jari | B55: 292 | C55: 339 | D55: 290 | E55: 223 | F55: 171 | G55: 305 | H55: =AVERAGE(B55:G55) -> 270 | I55: =MIN(B55:G55) -> 171 | J55: =MAX(B55:G55) -> 339
A56: Kätsä | B56: 270 | C56: 192 | D56: 219 | E56: 245 | F56: 259 | G56: 271 | H56: =AVERAGE(B56:G56) -> 242.6666667 | I56: =MIN(B56:G56) -> 192 | J56: =MAX(B56:G56) -> 271
A57: Tiina | B57: 223 | C57: 251 | D57: 245 | E57: 225 | F57: 228 | G57: 241 | H57: =AVERAGE(B57:G57) -> 235.5 | I57: =MIN(B57:G57) -> 223 | J57: =MAX(B57:G57) -> 251
A58: Patrik | B58: 152 | C58: 88 | D58: 219 | E58: 310 | F58: 333 | G58: 327 | H58: =AVERAGE(B58:G58) -> 238.1666667 | I58: =MIN(B58:G58) -> 88 | J58: =MAX(B58:G58) -> 333
A59: Kude | B59: 209 | C59: 284 | D59: 175 | E59: 282 | F59: 152 | H59: 220.4 | I59: 152 | J59: 284
A60: Aleksi | B60: 260 | C60: 171 | D60: 175 | E60: 159 | F60: 209 | G60: 151 | H60: =AVERAGE(B60:G60) -> 187.5 | I60: =MIN(B60:G60) -> 151 | J60: =MAX(B60:G60) -> 260
A61: Petri T | B61: 2 | C61: 67 | D61: 171 | E61: 224 | F61: 313 | G61: 356 | H61: =AVERAGE(B61:G61) -> 188.8333333 | I61: =MIN(B61:G61) -> 2 | J61: =MAX(B61:G61) -> 356

Sheet Aputaulukko
C1: Check | D1: =KOKONAISTILANNE!G9 -> 2025-05-06 | E1: =KOKONAISTILANNE!I9 -> 2025-05-13 | F1: =KOKONAISTILANNE!K9 -> 2025-05-20 | G1: =KOKONAISTILANNE!M9 -> 2025-05-27 | H1: =KOKONAISTILANNE!O9 -> 2025-06-03 | I1: =KOKONAISTILANNE!Q9 -> 2025-06-10 | J1: =KOKONAISTILANNE!S9 -> 2025-06-17 | K1: =KOKONAISTILANNE!U9 -> 2025-06-24 | L1: =KOKONAISTILANNE!W9 -> 2025-07-01 | M1: =KOKONAISTILANNE!Y9 -> 2025-07-08 | N1: =KOKONAISTILANNE!AA9 -> 2025-07-15 | O1: =KOKONAISTILANNE!AC9 -> 2025-07-22 | P1: =KOKONAISTILANNE!AE9 -> 2025-07-29 | Q1: =KOKONAISTILANNE!AG9 -> 2025-08-05 | R1: =KOKONAISTILANNE!AI9 -> 2025-08-12 | S1: =KOKONAISTILANNE!AK9 -> 2025-08-19 | T1: =KOKONAISTILANNE!AM9 -> 2025-08-26 | U1: =KOKONAISTILANNE!AO9 -> 2025-09-02 | V1: =KOKONAISTILANNE!AQ9 -> 2025-09-09 | W1: =KOKONAISTILANNE!AS9 -> 16.9. | X1: 1 | Y1: 2 | Z1: 3 | AA1: 4 | AB1: 5 | AC1: 6 | AD1: 7 | AE1: 8 | AF1: 9 | AG1: 10 | AH1: 11 | AI1: 12 | AJ1: Pisteet
A2: 1 | B2: Petri Lönngren | C2: =KOKONAISTILANNE!C10 -> Petri Lönngren | E2: =KOKONAISTILANNE!J10 -> 21 | F2: =KOKONAISTILANNE!L10 -> 28 | G2: =KOKONAISTILANNE!N10 -> 35 | H2: =KOKONAISTILANNE!P10 -> 25 | I2: =KOKONAISTILANNE!R10 -> 35 | J2: =KOKONAISTILANNE!T10 -> 39 | K2: =KOKONAISTILANNE!V10 -> 11 | L2: =KOKONAISTILANNE!X10 -> 22 | M2: =KOKONAISTILANNE!Z10 -> 23 | N2: =KOKONAISTILANNE!AB10 -> 35 | O2: =KOKONAISTILANNE!AD10 -> 38 | P2: =KOKONAISTILANNE!AF10 -> 22 | Q2: =KOKONAISTILANNE!AH10 -> 23 | R2: =KOKONAISTILANNE!AJ10 -> 21 | S2: =KOKONAISTILANNE!AL10 -> 33 | T2: =KOKONAISTILANNE!AN10 -> 27 | U2: =KOKONAISTILANNE!AP10 -> 36 | V2: =KOKONAISTILANNE!AR10 -> 31 | W2: =KOKONAISTILANNE!AT10 -> 22 | X2: =LARGE(D2:W2,1) -> 39 | Y2: =LARGE(D2:W2,2) -> 38 | Z2: =LARGE(D2:W2,3) -> 36 | AA2: =LARGE(D2:W2,4) -> 35 | AB2: =LARGE(D2:W2,5) -> 35 | AC2: =LARGE(D2:W2,6) -> 35 | AD2: =LARGE(D2:W2,7) -> 33 | AE2: =LARGE(D2:W2,8) -> 31 | AF2: =LARGE(D2:W2,9) -> 28 | AG2: =LARGE(D2:W2,10) -> 27 | AH2: =LARGE(D2:W2,11) -> 25 | AI2: =LARGE(D2:W2,12) -> 23 | AJ2: =SUM(X2:AI2) -> 385
A3: 2 | B3: Oliver Mäntylä | C3: =KOKONAISTILANNE!C11 -> Oliver Mäntylä | D3: =KOKONAISTILANNE!H11 -> 25 | E3: =KOKONAISTILANNE!J11 -> 29 | F3: =KOKONAISTILANNE!L11 -> 25 | G3: =KOKONAISTILANNE!N11 -> 36 | H3: =KOKONAISTILANNE!P11 -> 33 | I3: =KOKONAISTILANNE!R11 -> 0 | J3: =KOKONAISTILANNE!T11 -> 0 | K3: =KOKONAISTILANNE!V11 -> 29 | L3: =KOKONAISTILANNE!X11 -> 33 | M3: =KOKONAISTILANNE!Z11 -> 32 | N3: =KOKONAISTILANNE!AB11 -> 27 | O3: =KOKONAISTILANNE!AD11 -> 39 | P3: =KOKONAISTILANNE!AF11 -> 26 | Q3: =KOKONAISTILANNE!AH11 -> 23 | R3: =KOKONAISTILANNE!AJ11 -> 0 | S3: =KOKONAISTILANNE!AL11 -> 33 | T3: =KOKONAISTILANNE!AN11 -> 29 | U3: =KOKONAISTILANNE!AP11 -> 28 | V3: =KOKONAISTILANNE!AR11 -> 0 | W3: =KOKONAISTILANNE!AT11 -> 23 | X3: =LARGE(D3:W3,1) -> 39 | Y3: =LARGE(D3:W3,2) -> 36 | Z3: =LARGE(D3:W3,3) -> 33 | AA3: =LARGE(D3:W3,4) -> 33 | AB3: =LARGE(D3:W3,5) -> 33 | AC3: =LARGE(D3:W3,6) -> 32 | AD3: =LARGE(D3:W3,7) -> 29 | AE3: =LARGE(D3:W3,8) -> 29 | AF3: =LARGE(D3:W3,9) -> 29 | AG3: =LARGE(D3:W3,10) -> 28 | AH3: =LARGE(D3:W3,11) -> 27 | AI3: =LARGE(D3:W3,12) -> 26 | AJ3: =SUM(X3:AI3) -> 374
A4: 3 | B4: Juuso Tasku | C4: =KOKONAISTILANNE!C12 -> Juuso Tasku | D4: =KOKONAISTILANNE!H12 -> 18 | E4: =KOKONAISTILANNE!J12 -> 35 | F4: =KOKONAISTILANNE!L12 -> 26 | G4: =KOKONAISTILANNE!N12 -> 11 | H4: =KOKONAISTILANNE!P12 -> 35 | I4: =KOKONAISTILANNE!R12 -> 14 | J4: =KOKONAISTILANNE!T12 -> 25 | K4: =KOKONAISTILANNE!V12 -> 23 | L4: =KOKONAISTILANNE!X12 -> 26 | M4: =KOKONAISTILANNE!Z12 -> 27 | N4: =KOKONAISTILANNE!AB12 -> 36 | O4: =KOKONAISTILANNE!AD12 -> 35 | P4: =KOKONAISTILANNE!AF12 -> 25 | Q4: =KOKONAISTILANNE!AH12 -> 24 | R4: =KOKONAISTILANNE!AJ12 -> 0 | S4: =KOKONAISTILANNE!AL12 -> 0 | T4: =KOKONAISTILANNE!AN12 -> 30 | U4: =KOKONAISTILANNE!AP12 -> 28 | V4: =KOKONAISTILANNE!AR12 -> 30 | W4: =KOKONAISTILANNE!AT12 -> 0 | X4: 36 | Y4: 35 | Z4: 35 | AA4: 35 | AB4: 30 | AC4: 30 | AD4: 28 | AE4: 27 | AF4: 26 | AG4: 26 | AH4: 25 | AI4: 25 | AJ4: 358
A5: 4 | B5: Miko Tuominen | C5: =KOKONAISTILANNE!C13 -> Miko Tuominen | D5: =KOKONAISTILANNE!H13 -> 0 | E5: =KOKONAISTILANNE!J13 -> 27 | F5: =KOKONAISTILANNE!L13 -> 23 | G5: =KOKONAISTILANNE!N13 -> 30 | H5: =KOKONAISTILANNE!P13 -> 28 | I5: =KOKONAISTILANNE!R13 -> 31 | J5: =KOKONAISTILANNE!T13 -> 37 | K5: =KOKONAISTILANNE!V13 -> 20 | L5: =KOKONAISTILANNE!X13 -> 30 | M5: =KOKONAISTILANNE!Z13 -> 20 | N5: =KOKONAISTILANNE!AB13 -> 27 | O5: =KOKONAISTILANNE!AD13 -> 32 | P5: =KOKONAISTILANNE!AF13 -> 24 | Q5: =KOKONAISTILANNE!AH13 -> 0 | R5: =KOKONAISTILANNE!AJ13 -> 27 | S5: =KOKONAISTILANNE!AL13 -> 20 | T5: =KOKONAISTILANNE!AN13 -> 39 | U5: =KOKONAISTILANNE!AP13 -> 0 | V5: =KOKONAISTILANNE!AR13 -> 0 | W5: =KOKONAISTILANNE!AT13 -> 25 | X5: 39 | Y5: 37 | Z5: 32 | AA5: 31 | AB5: 30 | AC5: 30 | AD5: 28 | AE5: 27 | AF5: 27 | AG5: 27 | AH5: 25 | AI5: 24 | AJ5: 357
A6: 5 | B6: Petri Tanninen | C6: =KOKONAISTILANNE!C14 -> Petri Tanninen | D6: =KOKONAISTILANNE!H14 -> 3 | E6: =KOKONAISTILANNE!J14 -> 27 | F6: =KOKONAISTILANNE!L14 -> 13 | G6: =KOKONAISTILANNE!N14 -> 30 | H6: =KOKONAISTILANNE!P14 -> 41 | I6: =KOKONAISTILANNE!R14 -> 33 | J6: =KOKONAISTILANNE!T14 -> 26 | K6: =KOKONAISTILANNE!V14 -> 13 | L6: =KOKONAISTILANNE!X14 -> 18 | M6: =KOKONAISTILANNE!Z14 -> 7 | N6: =KOKONAISTILANNE!AB14 -> 22 | O6: =KOKONAISTILANNE!AD14 -> 32 | P6: =KOKONAISTILANNE!AF14 -> 29 | Q6: =KOKONAISTILANNE!AH14 -> 28 | R6: =KOKONAISTILANNE!AJ14 -> 17 | S6: =KOKONAISTILANNE!AL14 -> 32 | T6: =KOKONAISTILANNE!AN14 -> 28 | U6: =KOKONAISTILANNE!AP14 -> 28 | V6: =KOKONAISTILANNE!AR14 -> 18 | W6: =KOKONAISTILANNE!AT14 -> 20 | X6: 41 | Y6: 33 | Z6: 32 | AA6: 32 | AB6: 30 | AC6: 29 | AD6: 28 | AE6: 28 | AF6: 28 | AG6: 27 | AH6: 26 | AI6: 22 | AJ6: 356
A7: 6 | B7: Pekka Mäntylä | C7: =KOKONAISTILANNE!C15 -> Pekka Mäntylä | D7: =KOKONAISTILANNE!H15 -> 20 | E7: =KOKONAISTILANNE!J15 -> 29 | F7: =KOKONAISTILANNE!L15 -> 25 | G7: =KOKONAISTILANNE!N15 -> 18 | H7: =KOKONAISTILANNE!P15 -> 19 | I7: =KOKONAISTILANNE!R15 -> 0 | J7: =KOKONAISTILANNE!T15 -> 0 | K7: =KOKONAISTILANNE!V15 -> 0 | L7: =KOKONAISTILANNE!X15 -> 28 | M7: =KOKONAISTILANNE!Z15 -> 27 | N7: =KOKONAISTILANNE!AB15 -> 28 | O7: =KOKONAISTILANNE!AD15 -> 13 | P7: =KOKONAISTILANNE!AF15 -> 19 | Q7: =KOKONAISTILANNE!AH15 -> 28 | R7: =KOKONAISTILANNE!AJ15 -> 38 | S7: =KOKONAISTILANNE!AL15 -> 33 | T7: =KOKONAISTILANNE!AN15 -> 0 | U7: =KOKONAISTILANNE!AP15 -> 25 | V7: =KOKONAISTILANNE!AR15 -> 0 | W7: =KOKONAISTILANNE!AT15 -> 30 | X7: 38 | Y7: 33 | Z7: 30 | AA7: 29 | AB7: 28 | AC7: 28 | AD7: 28 | AE7: 27 | AF7: 25 | AG7: 25 | AH7: 20 | AI7: 19 | AJ7: 330
A8: 7 | B8: Juhani Samuli | C8: =KOKONAISTILANNE!C16 -> Juhani Samuli | D8: =KOKONAISTILANNE!H16 -> 0 | E8: =KOKONAISTILANNE!J16 -> 32 | F8: =KOKONAISTILANNE!L16 -> 23 | G8: =KOKONAISTILANNE!N16 -> 18 | H8: =KOKONAISTILANNE!P16 -> 24 | I8: =KOKONAISTILANNE!R16 -> 22 | J8: =KOKONAISTILANNE!T16 -> 20 | K8: =KOKONAISTILANNE!V16 -> 19 | L8: =KOKONAISTILANNE!X16 -> 23 | M8: =KOKONAISTILANNE!Z16 -> 19 | N8: =KOKONAISTILANNE!AB16 -> 26 | O8: =KOKONAISTILANNE!AD16 -> 32 | P8: =KOKONAISTILANNE!AF16 -> 14 | Q8: =KOKONAISTILANNE!AH16 -> 18 | R8: =KOKONAISTILANNE!AJ16 -> 24 | S8: =KOKONAISTILANNE!AL16 -> 33 | T8: =KOKONAISTILANNE!AN16 -> 8 | U8: =KOKONAISTILANNE!AP16 -> 24 | V8: =KOKONAISTILANNE!AR16 -> 35 | W8: =KOKONAISTILANNE!AT16 -> 31 | X8: 35 | Y8: 33 | Z8: 32 | AA8: 32 | AB8: 31 | AC8: 26 | AD8: 24 | AE8: 24 | AF8: 24 | AG8: 23 | AH8: 23 | AI8: 22 | AJ8: 329
A9: 8 | B9: Patrik Eriksson | C9: =KOKONAISTILANNE!C17 -> Patrik Eriksson | D9: =KOKONAISTILANNE!H17 -> 21 | E9: =KOKONAISTILANNE!J17 -> 25 | F9: =KOKONAISTILANNE!L17 -> 0 | G9: =KOKONAISTILANNE!N17 -> 26 | H9: =KOKONAISTILANNE!P17 -> 18 | I9: =KOKONAISTILANNE!R17 -> 33 | J9: =KOKONAISTILANNE!T17 -> 24 | K9: =KOKONAISTILANNE!V17 -> 27 | L9: =KOKONAISTILANNE!X17 -> 22 | M9: =KOKONAISTILANNE!Z17 -> 28 | N9: =KOKONAISTILANNE!AB17 -> 25 | O9: =KOKONAISTILANNE!AD17 -> 23 | P9: =KOKONAISTILANNE!AF17 -> 27 | Q9: =KOKONAISTILANNE!AH17 -> 28 | R9: =KOKONAISTILANNE!AJ17 -> 35 | S9: =KOKONAISTILANNE!AL17 -> 21 | T9: =KOKONAISTILANNE!AN17 -> 16 | U9: =KOKONAISTILANNE!AP17 -> 25 | V9: =KOKONAISTILANNE!AR17 -> 24 | W9: =KOKONAISTILANNE!AT17 -> 21 | X9: 35 | Y9: 33 | Z9: 28 | AA9: 28 | AB9: 27 | AC9: 27 | AD9: 26 | AE9: 25 | AF9: 25 | AG9: 25 | AH9: 24 | AI9: 24 | AJ9: 327
A10: 9 | B10: Jari Haapanen | C10: =KOKONAISTILANNE!C18 -> Jari Haapanen | D10: =KOKONAISTILANNE!H18 -> 0 | E10: =KOKONAISTILANNE!J18 -> 20 | F10: =KOKONAISTILANNE!L18 -> 10 | G10: =KOKONAISTILANNE!N18 -> 5 | H10: =KOKONAISTILANNE!P18 -> 26 | I10: =KOKONAISTILANNE!R18 -> 12 | J10: =KOKONAISTILANNE!T18 -> 26 | K10: =KOKONAISTILANNE!V18 -> 6 | L10: =KOKONAISTILANNE!X18 -> 28 | M10: =KOKONAISTILANNE!Z18 -> 26 | N10: =KOKONAISTILANNE!AB18 -> 17 | O10: =KOKONAISTILANNE!AD18 -> 22 | P10: =KOKONAISTILANNE!AF18 ->  | Q10: =KOKONAISTILANNE!AH18 -> 30 | R10: =KOKONAISTILANNE!AJ18 -> 31 | S10: =KOKONAISTILANNE!AL18 -> 18 | T10: =KOKONAISTILANNE!AN18 -> 0 | U10: =KOKONAISTILANNE!AP18 -> 22 | V10: =KOKONAISTILANNE!AR18 -> 38 | W10: =KOKONAISTILANNE!AT18 -> 18 | X10: 38 | Y10: 31 | Z10: 30 | AA10: 28 | AB10: 26 | AC10: 26 | AD10: 26 | AE10: 22 | AF10: 22 | AG10: 20 | AH10: 18 | AI10: 18 | AJ10: 305
A11: 10 | B11: Kari Linnanketo | C11: =KOKONAISTILANNE!C19 -> Kari Linnanketo | D11: =KOKONAISTILANNE!H19 -> 0 | E11: =KOKONAISTILANNE!J19 -> 8 | F11: =KOKONAISTILANNE!L19 ->  | G11: =KOKONAISTILANNE!N19 -> 5 | H11: =KOKONAISTILANNE!P19 -> 10 | I11: =KOKONAISTILANNE!R19 -> 20 | J11: =KOKONAISTILANNE!T19 -> 19 | K11: =KOKONAISTILANNE!V19 -> 0 | L11: =KOKONAISTILANNE!X19 -> 20 | M11: =KOKONAISTILANNE!Z19 -> 27 | N11: =KOKONAISTILANNE!AB19 -> 25 | O11: =KOKONAISTILANNE!AD19 -> 12 | P11: =KOKONAISTILANNE!AF19 -> 19 | Q11: =KOKONAISTILANNE!AH19 -> 0 | R11: =KOKONAISTILANNE!AJ19 -> 18 | S11: =KOKONAISTILANNE!AL19 -> 22 | T11: =KOKONAISTILANNE!AN19 -> 27 | U11: =KOKONAISTILANNE!AP19 -> 25 | V11: =KOKONAISTILANNE!AR19 -> 37 | W11: =KOKONAISTILANNE!AT19 -> 0 | X11: 37 | Y11: 27 | Z11: 27 | AA11: 25 | AB11: 25 | AC11: 22 | AD11: 20 | AE11: 20 | AF11: 19 | AG11: 19 | AH11: 18 | AI11: 12 | AJ11: 271
A12: 11 | B12: Tiina Tång | C12: =KOKONAISTILANNE!C20 -> Tiina Tång | D12: =KOKONAISTILANNE!H20 -> 0 | E12: =KOKONAISTILANNE!J20 -> 16 | F12: =KOKONAISTILANNE!L20 -> 1 | G12: =KOKONAISTILANNE!N20 -> 0 | H12: =KOKONAISTILANNE!P20 -> 12 | I12: =KOKONAISTILANNE!R20 -> 11 | J12: =KOKONAISTILANNE!T20 -> 6 | K12: =KOKONAISTILANNE!V20 -> 8 | L12: =KOKONAISTILANNE!X20 -> 26 | M12: =KOKONAISTILANNE!Z20 -> 11 | N12: =KOKONAISTILANNE!AB20 -> 32 | O12: =KOKONAISTILANNE!AD20 -> 17 | P12: =KOKONAISTILANNE!AF20 -> 0 | Q12: =KOKONAISTILANNE!AH20 -> 35 | R12: =KOKONAISTILANNE!AJ20 -> 28 | S12: =KOKONAISTILANNE!AL20 -> 21 | T12: =KOKONAISTILANNE!AN20 -> 4 | U12: =KOKONAISTILANNE!AP20 -> 2 | V12: =KOKONAISTILANNE!AR20 -> 24 | W12: =KOKONAISTILANNE!AT20 -> 0 | X12: 35 | Y12: 32 | Z12: 28 | AA12: 26 | AB12: 24 | AC12: 21 | AD12: 17 | AE12: 16 | AF12: 12 | AG12: 11 | AH12: 11 | AI12: 8 | AJ12: 241
A13: 12 | B13: Aleksi Tång | C13: =KOKONAISTILANNE!C21 -> Aleksi Tång | D13: =KOKONAISTILANNE!H21 -> 0 | E13: =KOKONAISTILANNE!J21 -> 6 | F13: =KOKONAISTILANNE!L21 -> 13 | G13: =KOKONAISTILANNE!N21 -> 15 | H13: =KOKONAISTILANNE!P21 -> 23 | I13: =KOKONAISTILANNE!R21 -> 0 | J13: =KOKONAISTILANNE!T21 -> 0 | K13: =KOKONAISTILANNE!V21 -> 0 | L13: =KOKONAISTILANNE!X21 -> 13 | M13: =KOKONAISTILANNE!Z21 -> 0 | N13: =KOKONAISTILANNE!AB21 -> 21 | O13: =KOKONAISTILANNE!AD21 -> 0 | P13: =KOKONAISTILANNE!AF21 -> 11 | Q13: =KOKONAISTILANNE!AH21 -> 18 | R13: =KOKONAISTILANNE!AJ21 -> 0 | S13: =KOKONAISTILANNE!AL21 -> 17 | T13: =KOKONAISTILANNE!AN21 -> 14 | U13: =KOKONAISTILANNE!AP21 ->  | V13: =KOKONAISTILANNE!AR21 -> 0 | W13: =KOKONAISTILANNE!AT21 -> 0 | X13: 23 | Y13: 21 | Z13: 18 | AA13: 17 | AB13: 15 | AC13: 14 | AD13: 13 | AE13: 13 | AF13: 11 | AG13: 6 | AH13: 0 | AI13: 0 | AJ13: 151
A14: 13 | B14: Marianne Martiala | C14: =KOKONAISTILANNE!C22 -> Marianne Martiala | D14: =KOKONAISTILANNE!H22 -> 0 | E14: =KOKONAISTILANNE!J22 -> 0 | F14: =KOKONAISTILANNE!L22 -> 0 | G14: =KOKONAISTILANNE!N22 -> 0 | H14: =KOKONAISTILANNE!P22 -> 10 | I14: =KOKONAISTILANNE!R22 -> 17 | J14: =KOKONAISTILANNE!T22 -> 0 | K14: =KOKONAISTILANNE!V22 -> 0 | L14: =KOKONAISTILANNE!X22 -> 0 | M14: =KOKONAISTILANNE!Z22 -> 0 | N14: =KOKONAISTILANNE!AB22 -> 11 | O14: =KOKONAISTILANNE!AD22 -> 0 | P14: =KOKONAISTILANNE!AF22 -> 1 | Q14: =KOKONAISTILANNE!AH22 -> 0 | R14: =KOKONAISTILANNE!AJ22 -> 1 | S14: =KOKONAISTILANNE!AL22 -> 12 | T14: =KOKONAISTILANNE!AN22 -> 0 | U14: =KOKONAISTILANNE!AP22 -> 6 | V14: =KOKONAISTILANNE!AR22 -> 22 | W14: =KOKONAISTILANNE!AT22 -> 23 | X14: 23 | Y14: 22 | Z14: 17 | AA14: 12 | AB14: 11 | AC14: 10 | AD14: 6 | AE14: 1 | AF14: 1 | AG14: 0 | AH14: 0 | AI14: 0 | AJ14: 103
A15: 14 | B15: Marjo Tiainen | C15: =KOKONAISTILANNE!C23 -> Marjo Tiainen | D15: =KOKONAISTILANNE!H23 -> 0 | E15: =KOKONAISTILANNE!J23 -> 0 | F15: =KOKONAISTILANNE!L23 -> 0 | G15: =KOKONAISTILANNE!N23 -> 0 | H15: =KOKONAISTILANNE!P23 -> 0 | I15: =KOKONAISTILANNE!R23 -> 4 | J15: =KOKONAISTILANNE!T23 -> 12 | K15: =KOKONAISTILANNE!V23 -> 0 | L15: =KOKONAISTILANNE!X23 -> 0 | M15: =KOKONAISTILANNE!Z23 -> 7 | N15: =KOKONAISTILANNE!AB23 -> 0 | O15: =KOKONAISTILANNE!AD23 -> 0 | P15: =KOKONAISTILANNE!AF23 -> 9 | Q15: =KOKONAISTILANNE!AH23 -> 1 | R15: =KOKONAISTILANNE!AJ23 -> 0 | S15: =KOKONAISTILANNE!AL23 -> 0 | T15: =KOKONAISTILANNE!AN23 -> 4 | U15: =KOKONAISTILANNE!AP23 -> 14 | V15: =KOKONAISTILANNE!AR23 -> 0 | W15: =KOKONAISTILANNE!AT23 -> 0 | X15: 14 | Y15: 12 | Z15: 9 | AA15: 7 | AB15: 4 | AC15: 4 | AD15: 1 | AE15: 0 | AF15: 0 | AG15: 0 | AH15: 0 | AI15: 0 | AJ15: 51
A16: 15 | B16: Kari Kulmala | C16: =KOKONAISTILANNE!C24 -> Kari Kulmala | D16: =KOKONAISTILANNE!H24 -> 0 | E16: =KOKONAISTILANNE!J24 -> 0 | F16: =KOKONAISTILANNE!L24 -> 0 | G16: =KOKONAISTILANNE!N24 -> 0 | H16: =KOKONAISTILANNE!P24 -> 0 | I16: =KOKONAISTILANNE!R24 -> 0 | J16: =KOKONAISTILANNE!T24 -> 0 | K16: =KOKONAISTILANNE!V24 -> 0 | L16: =KOKONAISTILANNE!X24 -> 0 | M16: =KOKONAISTILANNE!Z24 -> 0 | N16: =KOKONAISTILANNE!AB24 -> 3 | O16: =KOKONAISTILANNE!AD24 -> 0 | P16: =KOKONAISTILANNE!AF24 -> 0 | Q16: =KOKONAISTILANNE!AH24 -> 0 | R16: =KOKONAISTILANNE!AJ24 -> 15 | S16: =KOKONAISTILANNE!AL24 -> 0 | T16: =KOKONAISTILANNE!AN24 -> 0 | U16: =KOKONAISTILANNE!AP24 -> 19 | V16: =KOKONAISTILANNE!AR24 -> 0 | W16: =KOKONAISTILANNE!AT24 -> 3 | X16: 19 | Y16: 15 | Z16: 3 | AA16: 3 | AB16: 0 | AC16: 0 | AD16: 0 | AE16: 0 | AF16: 0 | AG16: 0 | AH16: 0 | AI16: 0 | AJ16: 40
A17: 16 | B17: Perttu Uotila | C17: =KOKONAISTILANNE!C25 -> Perttu Uotila | D17: =KOKONAISTILANNE!H25 -> 0 | E17: =KOKONAISTILANNE!J25 -> 0 | F17: =KOKONAISTILANNE!L25 -> 0 | G17: =KOKONAISTILANNE!N25 -> 0 | H17: =KOKONAISTILANNE!P25 -> 0 | I17: =KOKONAISTILANNE!R25 -> 0 | J17: =KOKONAISTILANNE!T25 -> 0 | K17: =KOKONAISTILANNE!V25 -> 0 | L17: =KOKONAISTILANNE!X25 -> 0 | M17: =KOKONAISTILANNE!Z25 -> 0 | N17: =KOKONAISTILANNE!AB25 -> 0 | O17: =KOKONAISTILANNE!AD25 -> 0 | P17: =KOKONAISTILANNE!AF25 -> 0 | Q17: =KOKONAISTILANNE!AH25 -> 0 | R17: =KOKONAISTILANNE!AJ25 -> 0 | S17: =KOKONAISTILANNE!AL25 -> 0 | T17: =KOKONAISTILANNE!AN25 -> 0 | U17: =KOKONAISTILANNE!AP25 -> 32 | V17: =KOKONAISTILANNE!AR25 -> 0 | W17: =KOKONAISTILANNE!AT25 -> 0 | X17: 32 | Y17: 0 | Z17: 0 | AA17: 0 | AB17: 0 | AC17: 0 | AD17: 0 | AE17: 0 | AF17: 0 | AG17: 0 | AH17: 0 | AI17: 0 | AJ17: 32
A18: 17 | B18: Axel Ekman | C18: =KOKONAISTILANNE!C26 -> Axel Ekman | D18: =KOKONAISTILANNE!H26 -> 0 | E18: =KOKONAISTILANNE!J26 -> 0 | F18: =KOKONAISTILANNE!L26 -> 0 | G18: =KOKONAISTILANNE!N26 -> 0 | H18: =KOKONAISTILANNE!P26 -> 0 | I18: =KOKONAISTILANNE!R26 -> 0 | J18: =KOKONAISTILANNE!T26 -> 0 | K18: =KOKONAISTILANNE!V26 -> 0 | L18: =KOKONAISTILANNE!X26 -> 0 | M18: =KOKONAISTILANNE!Z26 -> 0 | N18: =KOKONAISTILANNE!AB26 -> 0 | O18: =KOKONAISTILANNE!AD26 -> 0 | P18: =KOKONAISTILANNE!AF26 -> 17 | Q18: =KOKONAISTILANNE!AH26 -> 0 | R18: =KOKONAISTILANNE!AJ26 -> 0 | S18: =KOKONAISTILANNE!AL26 -> 0 | T18: =KOKONAISTILANNE!AN26 -> 0 | U18: =KOKONAISTILANNE!AP26 ->  | V18: =KOKONAISTILANNE!AR26 -> 0 | W18: =KOKONAISTILANNE!AT26 -> 0 | X18: 17 | Y18: 0 | Z18: 0 | AA18: 0 | AB18: 0 | AC18: 0 | AD18: 0 | AE18: 0 | AF18: 0 | AG18: 0 | AH18: 0 | AI18: 0 | AJ18: 17
A19: 18 | B19: Kenth Smeds | C19: =KOKONAISTILANNE!C27 -> Kenth Smeds | D19: =KOKONAISTILANNE!H27 -> 0 | E19: =KOKONAISTILANNE!J27 -> 0 | F19: =KOKONAISTILANNE!L27 -> 0 | G19: =KOKONAISTILANNE!N27 -> 0 | H19: =KOKONAISTILANNE!P27 -> 14 | I19: =KOKONAISTILANNE!R27 -> 0 | J19: =KOKONAISTILANNE!T27 -> 0 | K19: =KOKONAISTILANNE!V27 -> 0 | L19: =KOKONAISTILANNE!X27 -> 0 | M19: =KOKONAISTILANNE!Z27 -> 0 | N19: =KOKONAISTILANNE!AB27 -> 0 | O19: =KOKONAISTILANNE!AD27 -> 0 | P19: =KOKONAISTILANNE!AF27 -> 0 | Q19: =KOKONAISTILANNE!AH27 -> 0 | R19: =KOKONAISTILANNE!AJ27 -> 0 | S19: =KOKONAISTILANNE!AL27 -> 0 | T19: =KOKONAISTILANNE!AN27 -> 0 | U19: =KOKONAISTILANNE!AP27 -> 0 | V19: =KOKONAISTILANNE!AR27 -> 0 | W19: =KOKONAISTILANNE!AT27 -> 0 | X19: 14 | Y19: 0 | Z19: 0 | AA19: 0 | AB19: 0 | AC19: 0 | AD19: 0 | AE19: 0 | AF19: 0 | AG19: 0 | AH19: 0 | AI19: 0 | AJ19: 14
A20: 19 | B20: Jori Pasanen | C20: =KOKONAISTILANNE!C28 -> Jori Pasanen | D20: =KOKONAISTILANNE!H28 -> 0 | E20: =KOKONAISTILANNE!J28 -> 0 | F20: =KOKONAISTILANNE!L28 -> 0 | G20: =KOKONAISTILANNE!N28 -> 0 | H20: =KOKONAISTILANNE!P28 -> 0 | I20: =KOKONAISTILANNE!R28 -> 0 | J20: =KOKONAISTILANNE!T28 -> 0 | K20: =KOKONAISTILANNE!V28 -> 0 | L20: =KOKONAISTILANNE!X28 -> 13 | M20: =KOKONAISTILANNE!Z28 -> 0 | N20: =KOKONAISTILANNE!AB28 -> 0 | O20: =KOKONAISTILANNE!AD28 -> 0 | P20: =KOKONAISTILANNE!AF28 -> 0 | Q20: =KOKONAISTILANNE!AH28 -> 0 | R20: =KOKONAISTILANNE!AJ28 -> 0 | S20: =KOKONAISTILANNE!AL28 -> 0 | T20: =KOKONAISTILANNE!AN28 -> 0 | U20: =KOKONAISTILANNE!AP28 -> 0 | V20: =KOKONAISTILANNE!AR28 -> 0 | W20: =KOKONAISTILANNE!AT28 -> 0 | X20: 13 | Y20: 0 | Z20: 0 | AA20: 0 | AB20: 0 | AC20: 0 | AD20: 0 | AE20: 0 | AF20: 0 | AG20: 0 | AH20: 0 | AI20: 0 | AJ20: 13
A21: 20 | B21: Koomikko | C21: =KOKONAISTILANNE!C29 -> Koomikko | D21: =KOKONAISTILANNE!H29 -> 0 | E21: =KOKONAISTILANNE!J29 -> 0 | F21: =KOKONAISTILANNE!L29 -> 0 | G21: =KOKONAISTILANNE!N29 -> 0 | H21: =KOKONAISTILANNE!P29 -> 0 | I21: =KOKONAISTILANNE!R29 -> 0 | J21: =KOKONAISTILANNE!T29 -> 0 | K21: =KOKONAISTILANNE!V29 -> 0 | L21: =KOKONAISTILANNE!X29 ->  | M21: =KOKONAISTILANNE!Z29 -> 0 | N21: =KOKONAISTILANNE!AB29 -> 0 | O21: =KOKONAISTILANNE!AD29 -> 0 | P21: =KOKONAISTILANNE!AF29 -> 0 | Q21: =KOKONAISTILANNE!AH29 -> 0 | R21: =KOKONAISTILANNE!AJ29 -> 0 | S21: =KOKONAISTILANNE!AL29 -> 0 | T21: =KOKONAISTILANNE!AN29 -> 0 | U21: =KOKONAISTILANNE!AP29 -> 0 | V21: =KOKONAISTILANNE!AR29 -> 0 | W21: =KOKONAISTILANNE!AT29 -> 0 | X21: 0 | Y21: 0 | Z21: 0 | AA21: 0 | AB21: 0 | AC21: 0 | AD21: 0 | AE21: 0 | AF21: 0 | AG21: 0 | AH21: 0 | AI21: 0 | AJ21: 0
A22: 21 | B22: Tomi Aunio | C22: =KOKONAISTILANNE!C30 -> Tomi Aunio | D22: =KOKONAISTILANNE!H30 -> 0 | E22: =KOKONAISTILANNE!J30 -> 0 | F22: =KOKONAISTILANNE!L30 -> 0 | G22: =KOKONAISTILANNE!N30 -> 0 | H22: =KOKONAISTILANNE!P30 -> 0 | I22: =KOKONAISTILANNE!R30 -> 0 | J22: =KOKONAISTILANNE!T30 -> 0 | K22: =KOKONAISTILANNE!V30 -> 0 | L22: =KOKONAISTILANNE!X30 -> 0 | M22: =KOKONAISTILANNE!Z30 -> 0 | N22: =KOKONAISTILANNE!AB30 -> 0 | O22: =KOKONAISTILANNE!AD30 -> 0 | P22: =KOKONAISTILANNE!AF30 -> 0 | Q22: =KOKONAISTILANNE!AH30 -> 0 | R22: =KOKONAISTILANNE!AJ30 -> 0 | S22: =KOKONAISTILANNE!AL30 -> 0 | T22: =KOKONAISTILANNE!AN30 -> 0 | U22: =KOKONAISTILANNE!AP30 -> 0 | V22: =KOKONAISTILANNE!AR30 -> 0 | W22: =KOKONAISTILANNE!AT30 -> 0 | X22: 0 | Y22: 0 | Z22: 0 | AA22: 0 | AB22: 0 | AC22: 0 | AD22: 0 | AE22: 0 | AF22: 0 | AG22: 0 | AH22: 0 | AI22: 0 | AJ22: 0
A23: 22 | B23: Ari Åman | C23: =KOKONAISTILANNE!C31 -> Ari Åman | D23: =KOKONAISTILANNE!H31 -> 0 | E23: =KOKONAISTILANNE!J31 -> 0 | F23: =KOKONAISTILANNE!L31 -> 0 | G23: =KOKONAISTILANNE!N31 -> 0 | H23: =KOKONAISTILANNE!P31 -> 0 | I23: =KOKONAISTILANNE!R31 -> 0 | J23: =KOKONAISTILANNE!T31 -> 0 | K23: =KOKONAISTILANNE!V31 -> 0 | L23: =KOKONAISTILANNE!X31 -> 0 | M23: =KOKONAISTILANNE!Z31 -> 0 | N23: =KOKONAISTILANNE!AB31 -> 0 | O23: =KOKONAISTILANNE!AD31 -> 0 | P23: =KOKONAISTILANNE!AF31 -> 0 | Q23: =KOKONAISTILANNE!AH31 -> 0 | R23: =KOKONAISTILANNE!AJ31 -> 0 | S23: =KOKONAISTILANNE!AL31 -> 0 | T23: =KOKONAISTILANNE!AN31 -> 0 | U23: =KOKONAISTILANNE!AP31 -> 0 | V23: =KOKONAISTILANNE!AR31 -> 0 | W23: =KOKONAISTILANNE!AT31 -> 0 | X23: 0 | Y23: 0 | Z23: 0 | AA23: 0 | AB23: 0 | AC23: 0 | AD23: 0 | AE23: 0 | AF23: 0 | AG23: 0 | AH23: 0 | AI23: 0 | AJ23: 0

Sheet Pelilappu
A1: VIIKKOKISA 16.9.2025
A3: Nimi | B3: Seura | C3: Tasoitus | D3: Pisteitä | E3: 12.paras kisa | F3: 1.kierros | G3: 2.kierros | H3: Yhteensä | I3: Pisteet | J3: Sijoitus
A4: =KOKONAISTILANNE!C10 -> Petri Lönngren | B4: =KOKONAISTILANNE!D10 -> TuRGS | C4: =KOKONAISTILANNE!F10 -> +2 | D4: =KOKONAISTILANNE!AV10 -> 385 | E4: =Aputaulukko!AI2 -> 23
A5: =KOKONAISTILANNE!C11 -> Oliver Mäntylä | B5: =KOKONAISTILANNE!D11 -> TuRGS | C5: =KOKONAISTILANNE!F11 -> +5 | D5: =KOKONAISTILANNE!AV11 -> 374 | E5: =Aputaulukko!AI3 -> 26
A6: =KOKONAISTILANNE!C12 -> Juuso Tasku | B6: =KOKONAISTILANNE!D12 -> Manse | C6: =KOKONAISTILANNE!F12 -> +1 | D6: =KOKONAISTILANNE!AV12 -> 358 | E6: =Aputaulukko!AI4 -> 25
A7: =KOKONAISTILANNE!C13 -> Miko Tuominen | B7: =KOKONAISTILANNE!D13 -> Manse | C7: =KOKONAISTILANNE!F13 -> 0 | D7: =KOKONAISTILANNE!AV13 -> 357 | E7: =Aputaulukko!AI5 -> 24
A8: =KOKONAISTILANNE!C14 -> Petri Tanninen | B8: =KOKONAISTILANNE!D14 -> TuRGS | C8: =KOKONAISTILANNE!F14 -> 8 | D8: =KOKONAISTILANNE!AV14 -> 356 | E8: =Aputaulukko!AI6 -> 22
A9: =KOKONAISTILANNE!C15 -> Pekka Mäntylä | B9: =KOKONAISTILANNE!D15 -> TuRGS | C9: =KOKONAISTILANNE!F15 -> 1 | D9: =KOKONAISTILANNE!AV15 -> 330 | E9: =Aputaulukko!AI7 -> 19
A10: =KOKONAISTILANNE!C16 -> Juhani Samuli | B10: =KOKONAISTILANNE!D16 -> TuRGS | C10: =KOKONAISTILANNE!F16 -> 9 | D10: =KOKONAISTILANNE!AV16 -> 329 | E10: =Aputaulukko!AI8 -> 22
A11: =KOKONAISTILANNE!C17 -> Patrik Eriksson | B11: =KOKONAISTILANNE!D17 -> TuRGS | C11: =KOKONAISTILANNE!F17 -> 2 | D11: =KOKONAISTILANNE!AV17 -> 327 | E11: =Aputaulukko!AI9 -> 24
A12: =KOKONAISTILANNE!C18 -> Jari Haapanen | B12: =KOKONAISTILANNE!D18 -> TuRGS | C12: 10 | D12: =KOKONAISTILANNE!AV18 -> 305 | E12: =Aputaulukko!AI10 -> 18
A13: =KOKONAISTILANNE!C19 -> Kari Linnanketo | B13: =KOKONAISTILANNE!D19 -> TuRGS | C13: =KOKONAISTILANNE!F19 -> 7 | D13: =KOKONAISTILANNE!AV19 -> 271 | E13: =Aputaulukko!AI11 -> 12
A14: =KOKONAISTILANNE!C20 -> Tiina Tång | B14: =KOKONAISTILANNE!D20 -> TuRGS | C14: =KOKONAISTILANNE!F20 -> 11 | D14: =KOKONAISTILANNE!AV20 -> 241 | E14: =Aputaulukko!AI12 -> 8
A15: =KOKONAISTILANNE!C21 -> Aleksi Tång | B15: =KOKONAISTILANNE!D21 -> TuRGS | C15: =KOKONAISTILANNE!F21 -> 12 | D15: =KOKONAISTILANNE!AV21 -> 151 | E15: =Aputaulukko!AI13 -> 0
A16: =KOKONAISTILANNE!C22 -> Marianne Martiala | B16: =KOKONAISTILANNE!D22 -> TuRGS | C16: =KOKONAISTILANNE!F22 -> 20 | D16: =KOKONAISTILANNE!AV22 -> 103 | E16: =Aputaulukko!AI14 -> 0
A17: =KOKONAISTILANNE!C23 -> Marjo Tiainen | B17: =KOKONAISTILANNE!D23 -> TuRGS | C17: =KOKONAISTILANNE!F23 -> 16 | D17: =KOKONAISTILANNE!AV23 -> 51 | E17: =Aputaulukko!AI15 -> 0
A18: =KOKONAISTILANNE!C24 -> Kari Kulmala | B18: =KOKONAISTILANNE!D24 -> TuRGS | C18: =KOKONAISTILANNE!F24 -> 14 | D18: =KOKONAISTILANNE!AV24 -> 40 | E18: =Aputaulukko!AI16 -> 0
A19: =KOKONAISTILANNE!C25 -> Perttu Uotila | B19: =KOKONAISTILANNE!D25 -> SuoRa | C19: =KOKONAISTILANNE!F25 -> 7 | D19: =KOKONAISTILANNE!AV25 -> 32 | E19: =Aputaulukko!AI17 -> 0
A20: =KOKONAISTILANNE!C26 -> Axel Ekman | B20: =KOKONAISTILANNE!D26 -> Manse | C20: =KOKONAISTILANNE!F26 -> 8 | D20: =KOKONAISTILANNE!AV26 -> 17 | E20: =Aputaulukko!AI18 -> 0
A21: =KOKONAISTILANNE!C27 -> Kenth Smeds | B21: =KOKONAISTILANNE!D27 -> NMG | C21: =KOKONAISTILANNE!F27 -> 12 | D21: =KOKONAISTILANNE!AV27 -> 14 | E21: =Aputaulukko!AI19 -> 0
A22: =KOKONAISTILANNE!C28 -> Jori Pasanen | B22: =KOKONAISTILANNE!D28 -> TuRGS | C22: =KOKONAISTILANNE!F28 -> 4 | D22: =KOKONAISTILANNE!AV28 -> 0 | E22: =Aputaulukko!AI20 -> 0
A23: =KOKONAISTILANNE!C29 -> Koomikko | B23: =KOKONAISTILANNE!D29 -> TuRGS | C23: =KOKONAISTILANNE!F29 -> 16 | D23: =KOKONAISTILANNE!AV29 -> 0 | E23: =Aputaulukko!AI21 -> 0
A24: =KOKONAISTILANNE!C30 -> Tomi Aunio | B24: =KOKONAISTILANNE!D30 -> TuRGS | C24: =KOKONAISTILANNE!F30 -> 8 | D24: =KOKONAISTILANNE!AV30 -> 0 | E24: =Aputaulukko!AI22 -> 0
A25: =KOKONAISTILANNE!C31 -> Ari Åman | B25: =KOKONAISTILANNE!D31 -> TaRGS | C25: =KOKONAISTILANNE!F31 -> 8 | D25: =KOKONAISTILANNE!AV31 -> 0 | E25: =Aputaulukko!AI23 -> 0
A29: PIIKKIKISA
A30: Nimi | C30: Rata | F30: Tulos
